fUST/lending_fUST_20250310
["ID","MTS","AMOUNT","RATE_DAILY","PERIOD"]
[355802379,1741590639310,-815.46903214,0.00050861,2]
[355802380,1741590639320,-1646.10713396,0.00050861,2]
[355802381,1741590639330,-47054.765845,0.00050861,120]
[355802382,1741590639340,-324.30007276,0.00050861,2]
[355802383,1741590639350,-289.42990553,0.00050861,2]
[355802384,1741590639359,-1199.36223742,0.00050861,2]
[355802385,1741590639369,-18498.76415288,0.00050861,2]
[355802386,1741590639379,-4149.27331098,0.00050861,7]
[355802387,1741590639389,-2656.25160476,0.00050861,2]
[355802388,1741590639398,-23479.43806244,0.00050861,20]
[355802389,1741590639409,-24991.66313239,0.00050861,120]
[355802390,1741590639419,-5861.04693549,0.00050861,2]
[355802391,1741590639428,-1385.49207614,0.00050861,2]
[355802392,1741590639438,-300.73533698,0.00050861,2]
[355802393,1741590639447,-582.04464112,0.00050861,2]
[355802394,1741590639458,-24245.61185557,0.00050861,30]
[355802395,1741590639467,-5846.91101883,0.00050861,2]
[355802396,1741590639543,-31558.72798624,0.00050861,2]
[355802397,1741590639553,-151.46550032,0.00050861,2]
[355802398,1741590639563,-5017.45159079,0.00050861,2]
[355802452,1741590643497,-398.0,0.00043407,2]
[355802453,1741590643508,-398.0,0.00046407,2]
[355802454,1741590643517,-398.0,0.00049407,2]
[355802455,1741590643529,-29.27710887,0.00050851,10]
[355802456,1741590643541,-424.83643754,0.00050851,10]
[355802483,1741591332337,819.0,0.0002501,2]
[355802492,1741591569131,150.0,0.0002291,2]
[355802494,1741591591085,-247.888457,0.0003589,2]
[355802495,1741591591108,-14.46210388,0.00041211,2]
[355802527,1741591714979,4011.65870973,0.00022,2]
[355802528,1741591715836,1352.0,0.000145,2]
[355802529,1741591716915,20214.33278381,0.00015,4]
[355802577,1741591836925,-4793.04160564,0.00036,30]
[355802579,1741591836935,-400.0,0.00037586,2]
[355802581,1741591836944,-1152.02828599,0.000379,8]
[355802583,1741591836953,-1290.27790159,0.00038,2]
[355802585,1741591836963,-2000.0,0.00041,3]
[355802587,1741591836972,-233.42635312,0.00041211,2]
[355802589,1741591836981,-2000.0,0.000415,30]
[355802590,1741591836990,-500.0,0.00042633,42]
[355802591,1741591837000,-500.0,0.00042795,2]
[355802592,1741591837009,-500.0,0.00042795,2]
[355802593,1741591837018,-500.0,0.00042795,2]
[355802594,1741591837027,-500.0,0.00042795,2]
[355802595,1741591837037,-500.0,0.00042795,2]
[355802596,1741591837046,-500.0,0.00042795,2]
[355802597,1741591837055,-500.0,0.00042795,2]
[355802598,1741591837065,-500.0,0.00042795,2]
[355802599,1741591837075,-223.4914171,0.00042795,2]
[355802600,1741591837085,-500.0,0.00042795,2]
[355802601,1741591837094,-500.0,0.00042795,2]
[355802602,1741591837104,-247.81263065,0.00042795,2]
[355802603,1741591837114,-500.0,0.00042795,2]
[355802604,1741591837123,-6264.75956141,0.00042797,2]
[355802612,1741591838578,-812.55,0.00042797,2]
[355802646,1741591840859,-17822.69043859,0.00042797,2]
[355802648,1741591840869,-214.9941516,0.00043414,64]
[355802650,1741591840879,-398.0,0.0004556,2]
[355802652,1741591840889,-247.888457,0.00046532,2]
[355802654,1741591840899,-398.0,0.0004856,2]
[355802657,1741591840908,-2017.0,0.00049,30]
[355802659,1741591840919,-6156.44839311,0.00049,120]
[355802661,1741591840928,-154.01,0.000493,45]
[355802663,1741591840938,-154.01,0.000493,45]
[355802665,1741591840948,-154.01,0.000493,45]
[355802667,1741591840957,-300.0,0.00049315,120]
[355802669,1741591840967,-416.66666667,0.0004968,2]
[355802670,1741591840977,-14758.09322077,0.00049694,2]
[355802672,1741591840987,-1435.3341803,0.00049843,4]
[355802674,1741591840997,-500.0,0.0004987,120]
[355802677,1741591841007,-167.7966245,0.0004987,120]
[355802678,1741591841017,-167.7966245,0.0004987,120]
[355802680,1741591841027,-167.7966245,0.0004987,120]
[355802683,1741591841037,-167.7966245,0.0004987,120]
[355802685,1741591841047,-167.7966245,0.0004987,120]
[355802687,1741591841056,-167.7966245,0.0004987,120]
[355802689,1741591841066,-167.7966245,0.0004987,120]
[355802690,1741591841077,-167.7966245,0.0004987,120]
[355802692,1741591841088,-167.7966245,0.0004987,120]
[355802694,1741591841097,-167.7966245,0.0004987,120]
[355802696,1741591841106,-167.7966245,0.0004987,120]
[355802698,1741591841116,-167.7966245,0.0004987,120]
[355802700,1741591841125,-167.7966245,0.0004987,120]
[355802702,1741591841135,-167.7966245,0.0004987,120]
[355802704,1741591841146,-167.7966245,0.0004987,120]
[355802706,1741591841155,-167.7966245,0.0004987,120]
[355802708,1741591841165,-167.7966245,0.0004987,120]
[355802710,1741591841176,-167.7966245,0.0004987,120]
[355802712,1741591841186,-36497.69538,0.00049888,30]
[355802714,1741591841195,-593.76,0.00049889,30]
[355802716,1741591841204,-7558.5142434,0.0004989,4]
[355802717,1741591841214,-3857.6,0.0004989,10]
[355802719,1741591841223,-3363.15,0.00049899,120]
[355802720,1741591841233,-222000.0,0.000499,2]
[355802721,1741591841243,-10406.88669802,0.0005,120]
[355802723,1741591841253,-1511.70284868,0.0005049,4]
[355802724,1741591841263,-5000.0,0.000505,120]
[355802725,1741591841273,-10000.0,0.000505,120]
[355802726,1741591841283,-531.13,0.000508,2]
[355802727,1741591841292,-1511.70284868,0.00050812,4]
[355802728,1741591841301,-55555.0,0.00050822,120]
[355802729,1741591841311,-268.95676,0.00050856,120]
[355802730,1741591841321,-151.0,0.00050856,120]
[355802731,1741591841331,-151.0,0.00050856,120]
[355802732,1741591841345,-151.0,0.00050856,120]
[355802733,1741591841354,-241.961391,0.00050856,120]
[355802734,1741591841364,-151.0,0.00050857,120]
[355802735,1741591841374,-151.0,0.00050857,120]
[355802736,1741591841383,-275.501808,0.00050857,120]
[355802737,1741591841393,-151.0,0.00050857,120]
[355802738,1741591841403,-151.0,0.00050857,120]
[355802739,1741591841412,-151.0,0.00050857,120]
[355802740,1741591841422,-151.0,0.00050857,120]
[355802741,1741591841432,-151.0,0.00050857,120]
[355802742,1741591841441,-151.0,0.00050861,120]
[355802743,1741591841451,-151.0,0.00050861,120]
[355802744,1741591841460,-151.0,0.00050861,120]
[355802745,1741591841474,-151.0,0.00050861,30]
[355802746,1741591841483,-151.0,0.00050861,120]
[355802747,1741591841494,-151.0,0.00050861,120]
[355802748,1741591841504,-270.432484,0.00050861,30]
[355802749,1741591841513,-151.0,0.00050861,120]
[355802750,1741591841523,-151.0,0.00050861,120]
[355802751,1741591841532,-151.0,0.00050861,120]
[355802752,1741591841543,-151.0,0.00050861,120]
[355802753,1741591841554,-151.0,0.00050861,120]
[355802754,1741591841563,-151.0,0.00050861,120]
[355802755,1741591841573,-151.0,0.00050861,120]
[355802756,1741591841582,-151.0,0.00050861,120]
[355802757,1741591841595,-257.301068,0.00050861,120]
[355802758,1741591841605,-151.0,0.00050861,120]
[355802759,1741591841615,-151.0,0.00050861,120]
[355802760,1741591841624,-151.0,0.00050861,120]
[355802761,1741591841634,-151.0,0.00050861,120]
[355802762,1741591841645,-151.0,0.00050861,120]
[355802763,1741591841655,-151.0,0.00050861,120]
[355802764,1741591841664,-151.0,0.00050861,120]
[355802765,1741591841674,-151.0,0.00050861,120]
[355802766,1741591841683,-151.0,0.00050861,120]
[355802767,1741591841694,-151.0,0.00050861,120]
[355802768,1741591841704,-151.0,0.00050861,120]
[355802769,1741591841713,-151.0,0.00050861,120]
[355802770,1741591841723,-151.0,0.00050861,120]
[355802771,1741591841732,-151.0,0.00050861,120]
[355802772,1741591841742,-151.0,0.00050861,120]
[355802773,1741591841752,-160.104844,0.00050861,120]
[355802774,1741591841761,-151.0,0.00050865,120]
[355802775,1741591841771,-190.26,0.00050865,120]
[355802776,1741591841782,-190.26,0.00050865,120]
[355802777,1741591841792,-190.26,0.00050865,120]
[355802778,1741591841802,-190.26,0.00050865,120]
[355802779,1741591841812,-190.26,0.00050865,120]
[355802780,1741591841822,-190.26,0.00050865,120]
[355802781,1741591841832,-190.26,0.00050865,120]
[355802782,1741591841846,-190.26,0.00050865,120]
[355802783,1741591841856,-190.26,0.00050865,120]
[355802784,1741591841931,-190.26,0.00050865,120]
[355802785,1741591841952,-190.26,0.00050865,120]
[355802786,1741591841962,-190.26,0.00050865,120]
[355802787,1741591841972,-190.26,0.00050865,120]
[355802788,1741591841982,-190.26,0.00050865,120]
[355802789,1741591841993,-190.26,0.00050865,120]
[355802790,1741591842003,-190.26,0.00050865,120]
[355802791,1741591842012,-274.502002,0.00050865,120]
[355802792,1741591842022,-151.0,0.00050865,120]
[355802793,1741591842031,-226.371686,0.00050865,120]
[355802794,1741591842041,-503.75407753,0.0005088,60]
[355802795,1741591842051,-1000.0,0.00050892,2]
[355802796,1741591842060,-976.10935798,0.00050892,2]
[355802797,1741591842069,-1004.6,0.000509,30]
[355802798,1741591842079,-178.04,0.000509,30]
[355802799,1741591842093,-500.114646,0.000509,120]
[355802800,1741591842103,-8927.38311736,0.00050922,71]
[355802801,1741591842113,-1170.96207407,0.00050922,71]
[355802802,1741591842123,-5180.35969657,0.00050922,120]
[355802803,1741591842132,-152623.30313977,0.00050922,2]
[355802804,1741591842143,-2150.0,0.00050922,2]
[355802805,1741591842152,-10000.0,0.00050922,120]
[355802806,1741591842162,-250.0,0.00050922,120]
[355802807,1741591842171,-150.0,0.00050922,120]
[355802808,1741591842181,-150.0,0.00050922,120]
[355802809,1741591842191,-150.0,0.00050922,120]
[355802810,1741591842200,-150.0,0.00050922,120]
[355802811,1741591842210,-150.0,0.00050922,120]
[355802812,1741591842220,-295.974,0.00050922,120]
[355802813,1741591842229,-150.0,0.00050922,120]
[355802814,1741591842239,-150.0,0.00050922,120]
[355802815,1741591842248,-150.0,0.00050922,120]
[355802816,1741591842258,-152.45,0.00050922,120]
[355802817,1741591842267,-150.0,0.00050922,120]
[355802818,1741591842277,-150.0,0.00050922,120]
[355802819,1741591842287,-195.328,0.00050922,120]
[355802820,1741591842296,-150.0,0.00050922,120]
[355802821,1741591842306,-150.0,0.00050922,120]
[355802822,1741591842315,-150.0,0.00050922,120]
[355802823,1741591842325,-150.0,0.00050922,120]
[355802824,1741591842334,-10000.0,0.00050922,30]
[355802825,1741591842345,-10000.0,0.00050922,60]
[355802826,1741591842354,-185.5,0.00050922,30]
[355802827,1741591842364,-25000.0,0.00050922,60]
[355802828,1741591842373,-25000.0,0.00050922,65]
[355802829,1741591842383,-25000.0,0.00050922,70]
[355802830,1741591842392,-25000.0,0.00050922,75]
[355802831,1741591842401,-12858.55844477,0.00050922,80]
[355802857,1741591845168,-29.15006232,0.00050922,80]
[355802858,1741591845213,-1223.27710887,0.00050922,80]
[355802872,1741591846617,-507.24876872,0.00050922,2]
[355802887,1741591855231,-150.14954901,0.000252,2]
[355802889,1741591945926,1113.62734323,0.000259,4]
[355802891,1741592114863,1076.50643176,0.000259,4]
[355802892,1741592282828,1040.62288388,0.000259,4]
[355802894,1741592343226,-300.0,0.00025199,2]
[355802896,1741592459021,1005.93545434,0.000259,4]
[355802901,1741592632247,972.40427278,0.000259,4]
[355802904,1741592683671,-300.0,0.00025199,2]
[355802905,1741592683692,-11712.85045099,0.000252,2]
[355802908,1741592774409,705.95360892,0.000238,2]
[355802914,1741592949090,-378.76885223,0.00025199,2]
[355802915,1741592949112,-705.95360892,0.000288,2]
[355802916,1741592981199,7275.0,0.00025,10]
[355802945,1741593032224,-517.71860286,0.00029286,2]
[355802947,1741593032234,-2104.4222096,0.00031659,2]
[355802949,1741593032243,-2000.0,0.000325,15]
[355802951,1741593032253,-2000.0,0.000325,15]
[355802953,1741593032262,-1894.6944546,0.00033031,2]
[355802956,1741593032272,-500.0,0.00033114,2]
[355802958,1741593032281,-1761.36694312,0.00033362,2]
[355802960,1741593032290,-600.0,0.00033443,2]
[355802962,1741593032300,-20000.0,0.00033461,2]
[355802964,1741593032309,-380.0,0.00033463,2]
[355802966,1741593032318,-24900.0,0.00033463,2]
[355802968,1741593032328,-622.2,0.00033498,2]
[355802970,1741593032337,-500.0,0.000335,5]
[355802972,1741593032346,-500.0,0.000335,5]
[355802974,1741593032356,-500.0,0.000335,5]
[355802976,1741593032365,-500.0,0.000335,2]
[355802978,1741593032374,-500.0,0.000335,5]
[355802980,1741593032384,-500.0,0.000335,5]
[355802982,1741593032393,-160.82038696,0.000335,5]
[355802984,1741593032402,-491.46700254,0.000335,2]
[355802986,1741593032411,-645.2214,0.00033553,2]
[355802988,1741593032420,-669.0945918,0.00033608,2]
[355802990,1741593032429,-693.8510917,0.00033663,2]
[355802992,1741593032439,-719.52358209,0.00033718,2]
[355802994,1741593032448,-746.14595463,0.00033773,2]
[355802996,1741593032458,-773.75335495,0.00033828,2]
[355802998,1741593032467,-802.38222908,0.00033883,2]
[355803000,1741593032477,-939.99079704,0.000339,6]
[355803002,1741593032486,-832.07037156,0.00033938,2]
[355803004,1741593032496,-862.8569753,0.00033993,2]
[355803006,1741593032505,-894.78268339,0.00034048,2]
[355803008,1741593032514,-927.88964268,0.00034103,2]
[355803010,1741593032523,-962.22155946,0.00034158,2]
[355803012,1741593032533,-997.82375716,0.00034213,2]
[355803014,1741593032543,-1182.59900031,0.0003425,2]
[355803015,1741593032553,-1034.74323617,0.00034268,2]
[355803016,1741593032562,-1073.02873591,0.00034323,2]
[355803017,1741593032571,-1112.73079914,0.00034378,2]
[355803018,1741593032581,-1153.9018387,0.00034433,2]
[355803019,1741593032590,-1800.0,0.00034488,2]
[355803020,1741593032599,-250.0,0.00034882,2]
[355803021,1741593032608,-179.1105,0.00035,5]
[355803022,1741593032618,-2000.0,0.00035,15]
[355803023,1741593032627,-2000.0,0.00035,15]
[355803024,1741593032637,-195.80030178,0.00035562,2]
[355803025,1741593032647,-247.0546019,0.00035616,2]
[355803026,1741593032656,-1113.0233982,0.00035616,2]
[355803027,1741593032665,-202.9770159,0.00035694,2]
[355803028,1741593032675,-242.294414,0.0003589,2]
[355803029,1741593032684,-1070.17897954,0.000362,98]
[355803030,1741593032693,-500.0,0.00036553,3]
[355803031,1741593032703,-266.47191097,0.00037293,2]
[355803032,1741593032713,-494.00504297,0.000375,15]
[355803033,1741593034765,200.0,0.00027,120]
[355803051,1741593037960,-200.0,0.000323,120]
[355803052,1741593037971,-500.0,0.0003346,2]
[355803053,1741593037981,-500.0,0.0003346,2]
[355803054,1741593037992,-500.0,0.0003346,2]
[355803056,1741593038001,-500.0,0.0003346,2]
[355803058,1741593038011,-500.0,0.0003346,2]
[355803059,1741593038020,-500.0,0.0003346,2]
[355803061,1741593038030,-500.0,0.0003346,2]
[355803064,1741593038039,-500.0,0.0003346,2]
[355803065,1741593038049,-500.0,0.0003346,2]
[355803067,1741593038058,-500.0,0.0003346,2]
[355803069,1741593038068,-500.0,0.0003346,2]
[355803071,1741593038078,-500.0,0.0003346,2]
[355803072,1741593038088,-300.04434446,0.0003346,2]
[355803074,1741593038098,-500.0,0.0003346,2]
[355803076,1741593038109,-500.0,0.0003346,2]
[355803078,1741593038119,-1505.99495703,0.000375,15]
[355803080,1741593038129,-2000.0,0.000375,15]
[355803082,1741593038139,-500.0,0.00037551,4]
[355803083,1741593038150,-3968.7799143,0.00037586,2]
[355803084,1741593038159,-13218.46731551,0.00038026,2]
[355803085,1741593038169,-500.0,0.00038548,5]
[355803087,1741593038179,-500.0,0.00038979,5]
[355803088,1741593038188,-1000.0,0.00038979,5]
[355803090,1741593038199,-1000.0,0.00038979,2]
[355803092,1741593038209,-1000.0,0.00038979,5]
[355803094,1741593038219,-1070.1789795,0.00039343,116]
[355803096,1741593038229,-2512.71592923,0.00039719,3]
[355803097,1741593038239,-434.0,0.0004,120]
[355803099,1741593038249,-2000.0,0.0004,15]
[355803100,1741593038259,-2000.0,0.0004,15]
[355803101,1741593038268,-572.39045341,0.0004,15]
[355803102,1741593038278,-161.137404,0.00040387,3]
[355803103,1741593038287,-242.294414,0.00041211,2]
[355803104,1741593038297,-218.32,0.000413,30]
[355803105,1741593038307,-151.0,0.0004365,120]
[355803106,1741593038318,-151.0,0.0004365,120]
[355803107,1741593038327,-277.714906,0.0004365,120]
[355803108,1741593038337,-151.0,0.00045,120]
[355803109,1741593038347,-254.0,0.00045817,2]
[355803110,1741593038357,-177.0,0.00045817,2]
[355803111,1741593038367,-1070.1789795,0.00046287,120]
[355803112,1741593038377,-242.294414,0.00046532,2]
[355803113,1741593038386,-150.0,0.00048817,2]
[355803114,1741593038396,-150.0,0.00048817,2]
[355803115,1741593038406,-3214.66,0.0004899,10]
[355803116,1741593038416,-1500.0,0.00048998,10]
[355803117,1741593038426,-500.0,0.00048998,2]
[355803118,1741593038436,-1500.0,0.00048998,10]
[355803119,1741593038446,-16500.0,0.00049,120]
[355803120,1741593038457,-2678.89,0.0004909,10]
[355803121,1741593038467,-500.0,0.000491,2]
[355803122,1741593038478,-500.0,0.000491,2]
[355803123,1741593038488,-500.0,0.000491,2]
[355803124,1741593038498,-500.0,0.000491,2]
[355803125,1741593038508,-500.0,0.000491,2]
[355803126,1741593038518,-500.0,0.000491,2]
[355803127,1741593038529,-500.0,0.000491,2]
[355803128,1741593038539,-500.0,0.000491,2]
[355803129,1741593038549,-500.0,0.000491,2]
[355803130,1741593038560,-500.0,0.000491,2]
[355803131,1741593038569,-509.91,0.000491,2]
[355803132,1741593038579,-153.6,0.000493,45]
[355803133,1741593038656,-153.6,0.000493,45]
[355803134,1741593038667,-153.6,0.000493,45]
[355803135,1741593038677,-153.6,0.000493,45]
[355803136,1741593038687,-153.6,0.000493,45]
[355803137,1741593038696,-153.6,0.000493,45]
[355803138,1741593038707,-153.6,0.000493,45]
[355803139,1741593038717,-500.0,0.0004946,6]
[355803140,1741593038727,-500.0,0.00049597,6]
[355803141,1741593038736,-500.0,0.00049734,6]
[355803142,1741593038745,-500.0,0.00049871,6]
[355803143,1741593038755,-150.0,0.00049879,30]
[355803144,1741593038765,-1000.0,0.00049899,2]
[355803145,1741593038775,-1076.5006352,0.00049903,4]
[355803146,1741593038785,-218.32,0.0005,30]
[355803147,1741593038794,-500.0,0.00050008,6]
[355803148,1741593038804,-500.0,0.00050145,6]
[355803149,1741593038813,-500.0,0.00050282,6]
[355803150,1741593038823,-2512.71592923,0.00050409,4]
[355803151,1741593038837,-500.0,0.00050419,6]
[355803152,1741593038847,-500.0,0.00050556,6]
[355803153,1741593038856,-2232.41,0.00050607,10]
[355803154,1741593038867,-25388.17028,0.00050617,30]
[355803155,1741593038877,-3613.18,0.00050618,120]
[355803156,1741593038887,-7788.49915888,0.00050619,30]
[355803157,1741593038896,-3708.80912328,0.00050619,30]
[355803158,1741593038907,-11868.18919448,0.00050619,30]
[355803159,1741593038917,-500.0,0.00050693,6]
[355803160,1741593038926,-2512.71592923,0.00050712,4]
[355803161,1741593038936,-55555.0,0.00050722,120]
[355803162,1741593038946,-167.7966245,0.0005079,120]
[355803163,1741593038956,-167.7966245,0.0005079,120]
[355803164,1741593038966,-167.7966245,0.0005079,60]
[355803165,1741593038976,-167.7966245,0.0005079,60]
[355803166,1741593038986,-167.7966245,0.0005079,60]
[355803167,1741593038996,-167.7966245,0.0005079,60]
[355803168,1741593039007,-335.593249,0.0005079,120]
[355803169,1741593039016,-167.7966245,0.0005079,120]
[355803170,1741593039025,-5025.43185846,0.0005079,4]
[355803171,1741593039035,-478.02,0.000508,2]
[355803172,1741593039045,-90684.18542635,0.000508,120]
[355803173,1741593039055,-12563.5796461,0.00050812,4]
[355803174,1741593039065,-222000.0,0.00050822,2]
[355803175,1741593039075,-151.0,0.00050822,120]
[355803176,1741593039084,-179.37604099,0.00050824,47]
[355803177,1741593039093,-500.0,0.0005083,6]
[355803178,1741593039111,-2512.71592923,0.00050853,4]
[355803179,1741593039132,-7788.49915888,0.00050863,30]
[355803180,1741593039150,-3708.80912328,0.00050863,30]
[355803181,1741593039171,-11868.18919448,0.00050863,30]
[355803182,1741593039194,-512.66521294,0.00050887,20]
[355803183,1741593039213,-168.95428616,0.00050888,2]
[355803184,1741593039232,-168.09,0.000509,30]
[355803185,1741593039249,-153.99,0.000509,30]
[355803186,1741593039267,-7538.14778769,0.00050914,4]
[355803187,1741593039287,-667.83592641,0.00050921,120]
[355803188,1741593039321,-151.0,0.00050922,10]
[355803189,1741593039343,-151.0,0.00050922,120]
[355803191,1741593039367,-151.0,0.00050922,120]
[355803192,1741593039388,-151.0,0.00050922,120]
[355803193,1741593039416,-151.0,0.00050922,120]
[355803194,1741593039435,-151.0,0.00050922,120]
[355803195,1741593039464,-151.0,0.00050922,120]
[355803196,1741593039491,-151.0,0.00050922,120]
[355803197,1741593039513,-151.0,0.00050922,120]
[355803198,1741593039533,-151.0,0.00050922,120]
[355803199,1741593039549,-151.0,0.00050922,120]
[355803200,1741593039567,-151.0,0.00050922,120]
[355803201,1741593039583,-151.0,0.00050922,120]
[355803202,1741593039600,-151.0,0.00050922,120]
[355803203,1741593039617,-151.0,0.00050922,120]
[355803204,1741593039633,-229.062076,0.00050922,120]
[355803205,1741593039648,-151.0,0.00050922,120]
[355803207,1741593039665,-151.0,0.00050922,120]
[355803208,1741593039682,-151.0,0.00050922,120]
[355803209,1741593039697,-151.0,0.00050922,120]
[355803210,1741593039714,-151.0,0.00050922,120]
[355803211,1741593039729,-151.0,0.00050922,120]
[355803212,1741593039745,-250.0,0.00050922,120]
[355803213,1741593039760,-500.0,0.00050922,15]
[355803214,1741593039776,-151.0,0.00050923,120]
[355803215,1741593039792,-17459.1332662,0.00050923,71]
[355803216,1741593039808,-132421.10590169,0.00050923,71]
[355803217,1741593039826,-5000.0,0.00050924,120]
[355803218,1741593039844,-5000.0,0.00050924,120]
[355803219,1741593039860,-5000.0,0.00050924,120]
[355803220,1741593039878,-5000.0,0.00050924,120]
[355803221,1741593039893,-5000.0,0.00050924,120]
[355803222,1741593039903,-5000.0,0.00050924,120]
[355803223,1741593039913,-5000.0,0.00050924,120]
[355803229,1741593040056,-5000.0,0.00050924,120]
[355803230,1741593040068,-164715.90558254,0.00050924,120]
[355803232,1741593040078,-123565.56824813,0.00050924,7]
[355803234,1741593040089,-163.56987105,0.00050924,120]
[355803236,1741593040099,-3060.56045777,0.00050924,2]
[355803238,1741593040108,-90408.44882586,0.00050924,2]
[355803240,1741593040118,-1883.46983028,0.00050924,120]
[355803242,1741593040128,-20000.0,0.00050924,2]
[355803243,1741593040137,-16702.28042314,0.00050924,2]
[355803245,1741593040147,-300.0,0.00050924,2]
[355803247,1741593040157,-802.99888593,0.00050924,2]
[355803248,1741593040167,-40870.94874538,0.00050924,30]
[355803249,1741593040178,-1488.4671155,0.00050924,32]
[355803250,1741593040188,-252.67990472,0.00050924,2]
[355803251,1741593040199,-294.41925536,0.00050924,2]
[355803252,1741593040209,-815.46903214,0.00050924,2]
[355803253,1741593040220,-1646.10713396,0.00050924,2]
[355803254,1741593040230,-47054.765845,0.00050924,120]
[355803255,1741593040240,-324.30007276,0.00050924,2]
[355803256,1741593040249,-1199.36223742,0.00050924,2]
[355803257,1741593040264,-289.42990553,0.00050924,2]
[355803258,1741593040274,-18498.76415288,0.00050924,2]
[355803259,1741593040284,-4149.27331098,0.00050924,7]
[355803260,1741593040293,-2656.25160476,0.00050924,2]
[355803261,1741593040303,-23479.43806244,0.00050924,20]
[355803262,1741593040313,-5861.04693549,0.00050924,2]
[355803263,1741593040322,-24991.66313239,0.00050924,120]
[355803264,1741593040331,-582.04464112,0.00050924,2]
[355803266,1741593040341,-300.73533698,0.00050924,2]
[355803267,1741593040350,-1385.49207614,0.00050924,2]
[355803269,1741593040359,-5846.91101883,0.00050924,2]
[355803271,1741593040370,-24245.61185557,0.00050924,30]
[355803273,1741593040380,-31558.72798624,0.00050924,2]
[355803274,1741593040390,-151.46550032,0.00050924,2]
[355803275,1741593040400,-9362.15824297,0.00050924,2]
[355803276,1741593040409,-7483.26057105,0.00050924,2]
[355803277,1741593040419,-364055.25783201,0.00050924,60]
[355803278,1741593040429,-3006.16264774,0.00050924,120]
[355803279,1741593040438,-25000.0,0.00050924,80]
[355803280,1741593040448,-4672.8804134,0.00050924,30]
[355803281,1741593040459,-161.377,0.00050924,120]
[355803282,1741593040468,-150.0,0.00050924,120]
[355803283,1741593040478,-150.0,0.00050924,120]
[355803284,1741593040487,-150.0,0.00050924,120]
[355803285,1741593040496,-150.0,0.00050924,120]
[355803286,1741593040506,-150.0,0.00050924,120]
[355803287,1741593040515,-150.0,0.00050924,120]
[355803288,1741593040524,-150.0,0.00050924,120]
[355803289,1741593040534,-150.0,0.00050924,120]
[355803290,1741593040543,-150.0,0.00050924,120]
[355803291,1741593040553,-150.0,0.00050924,120]
[355803292,1741593040563,-150.0,0.00050924,120]
[355803293,1741593040573,-150.0,0.00050924,120]
[355803294,1741593040582,-150.0,0.00050924,120]
[355803295,1741593040592,-150.0,0.00050924,120]
[355803296,1741593040602,-150.0,0.00050924,120]
[355803297,1741593040612,-150.0,0.00050924,120]
[355803298,1741593040621,-150.0,0.00050924,120]
[355803299,1741593040631,-150.0,0.00050924,120]
[355803300,1741593040641,-1961.233,0.00050924,120]
[355803301,1741593040650,-1945.0,0.00050924,120]
[355803302,1741593040659,-1945.0,0.00050924,120]
[355803303,1741593040669,-1945.0,0.00050924,120]
[355803304,1741593040678,-1945.0,0.00050924,120]
[355803305,1741593040688,-1945.0,0.00050924,120]
[355803306,1741593040698,-1945.0,0.00050924,120]
[355803307,1741593040708,-557.897,0.00050924,120]
[355803308,1741593040717,-1945.0,0.00050924,120]
[355803309,1741593040726,-540.0,0.00050924,120]
[355803310,1741593040736,-1945.0,0.00050924,120]
[355803311,1741593040746,-540.0,0.00050924,120]
[355803312,1741593040755,-1945.0,0.00050924,120]
[355803313,1741593040764,-540.0,0.00050924,120]
[355803314,1741593040774,-540.0,0.00050924,120]